bitfinex/quotes_BTCUSD_20250825
["timestamp","ask_amount","ask_price","bid_price","bid_amount"]
[1756150263171,7.94271729,112150.0,112140.0,1e-08]
[1756150263404,7.97958809,112150.0,112140.0,1e-08]
[1756150263614,2.25668312,112120.0,112110.0,0.0004]
[1756150263826,7.58294521,112120.0,112110.0,0.0004]
[1756150264109,7.72354412,112120.0,112110.0,0.00244]
[1756150264334,7.72354412,112120.0,112100.0,0.07150163]
[1756150264335,0.17839621,112110.0,112100.0,0.07150163]
[1756150264555,7.14826101,112110.0,112100.0,0.07354163]
[1756150264775,7.14826101,112110.0,112100.0,0.07669163]
[1756150264996,7.63163055,112110.0,112100.0,0.07669163]
[1756150265222,7.62964055,112110.0,112100.0,0.07669163]
[1756150265437,7.62964055,112110.0,112080.0,0.07130163]
[1756150265438,0.51842804,112090.0,112080.0,0.07445163]
[1756150265652,7.48904868,112090.0,112080.0,0.07697247]
[1756150265863,7.51764302,112090.0,112080.0,0.07697247]
[1756150266074,7.57591833,112090.0,112080.0,0.07697247]
[1756150266287,7.60451267,112090.0,112080.0,0.07697247]
[1756150266493,7.60382388,112090.0,112080.0,0.00587084]
[1756150266711,7.76325428,112090.0,112080.0,0.00068084]
[1756150266922,0.19589298,112080.0,112070.0,0.0004]
[1756150267137,7.26193568,112080.0,112070.0,0.0004]
[1756150267350,7.28785123,112080.0,112070.0,0.0004]
[1756150267551,7.46329123,112080.0,112070.0,0.0004]
[1756150267769,7.63093123,112080.0,112070.0,0.0004]
[1756150267983,7.60819808,112080.0,112070.0,0.0004]
[1756150268187,7.62586075,112080.0,112070.0,0.00559]
[1756150268421,7.59374538,112080.0,112070.0,0.00559]
[1756150268843,7.62165093,112080.0,112070.0,0.00559]
[1756150269483,7.58655417,112080.0,112070.0,0.00559]
[1756150269696,7.58655417,112080.0,112070.0,0.00244]
[1756150269920,7.58655417,112080.0,112070.0,0.0004]
[1756150270185,7.58963417,112080.0,112070.0,0.0004]
[1756150270402,7.58955417,112080.0,112070.0,0.0004]
[1756150271224,7.59574803,112080.0,112070.0,0.0004]
[1756150271456,7.58955417,112080.0,112070.0,0.0004]
[1756150272317,2.26503052,112070.0,112060.0,1e-08]
[1756150272525,7.69607646,112070.0,112060.0,1e-08]
[1756150272952,7.86508738,112070.0,112060.0,1e-08]
[1756150273157,7.71508738,112070.0,112060.0,1e-08]
[1756150273364,7.86508738,112070.0,112060.0,1e-08]
[1756150273587,7.84017183,112070.0,112060.0,1e-08]
[1756150273802,7.82116091,112070.0,112060.0,1e-08]
[1756150274018,7.66808091,112070.0,112060.0,1e-08]
[1756150274219,7.81189264,112070.0,112060.0,1e-08]
[1756150274425,7.81803655,112070.0,112060.0,1e-08]
[1756150274705,7.8738801,112070.0,112060.0,1e-08]
[1756150275171,7.90247424,112070.0,112060.0,1e-08]
[1756150275383,7.7064401,112070.0,112060.0,1e-08]
[1756150275614,7.88785316,112070.0,112060.0,1e-08]
[1756150276326,7.57349316,112070.0,112060.0,1e-08]
[1756150276530,7.69449761,112070.0,112060.0,1e-08]
[1756150276770,7.8526337,112070.0,112060.0,1e-08]
[1756150276980,7.8557137,112070.0,112060.0,1e-08]
[1756150277191,7.7057137,112070.0,112060.0,1e-08]
[1756150277414,7.7057137,112070.0,112040.0,1e-08]
[1756150277415,2.23914682,112050.0,112040.0,1e-08]
[1756150277626,0.17850767,112040.0,112030.0,0.45322639]
[1756150277858,7.3326446,112040.0,112030.0,0.45526639]
[1756150278066,5.65436574,112040.0,112030.0,0.45526639]
[1756150278285,5.65448574,112040.0,112030.0,0.45841639]
[1756150278515,7.40751924,112040.0,112030.0,0.45841639]
[1756150278731,7.5431351,112040.0,112030.0,0.45841639]
[1756150278959,7.5482051,112040.0,112030.0,0.45337064]
[1756150279199,7.5492051,112040.0,112030.0,0.45337064]
[1756150279425,7.5482051,112040.0,112030.0,0.45337064]
[1756150279639,1.10858605,111990.0,111980.0,0.07110163]
[1756150279856,1.10858605,111990.0,111980.0,0.07314163]
[1756150280073,0.17858737,111990.0,111980.0,0.07629163]
[1756150280289,1.12256427,111990.0,111980.0,0.07629163]
[1756150280543,0.27943524,111990.0,111980.0,0.00519]
[1756150280751,0.03040061,111990.0,111980.0,0.07629163]
[1756150280973,1.13903453,111990.0,111980.0,0.07629163]
[1756150281413,1.12505631,111990.0,111980.0,0.07629163]
[1756150281675,1.12505631,111990.0,111980.0,0.00519]
[1756150281676,1.15191331,111990.0,111980.0,0.00519]
[1756150281875,0.17860332,111980.0,111970.0,0.00323]
[1756150282087,0.76123698,111980.0,111970.0,0.00527]
[1756150282322,1.73145756,111980.0,111970.0,0.00527]
[1756150282539,0.80145888,111980.0,111970.0,0.00527]
[1756150282766,1.73145756,111980.0,111970.0,0.00527]
[1756150283008,1.81832721,111980.0,111970.0,0.00527]
[1756150283230,1.81832721,111980.0,111970.0,0.00627]
[1756150283231,0.88832853,111980.0,111970.0,0.00627]
[1756150283458,1.81832721,111980.0,111970.0,0.00627]
[1756150283689,7.7502824,111980.0,111970.0,0.00108]
[1756150284128,7.7533624,111980.0,111970.0,0.00108]
[1756150284351,2.37863258,111960.0,111950.0,0.025568]
[1756150284572,5.53502412,111960.0,111950.0,0.027608]
[1756150284788,7.39502148,111960.0,111950.0,0.027608]
[1756150285009,5.53502412,111960.0,111950.0,0.027608]
[1756150285227,5.53502412,111960.0,111950.0,0.027628]
[1756150285228,7.39701148,111960.0,111950.0,0.027628]
[1756150285442,7.48189113,111960.0,111950.0,0.030588]
[1756150285660,7.55427273,111960.0,111950.0,0.027628]
[1756150285883,7.55224273,111960.0,111950.0,0.030588]
[1756150286099,5.69427537,111960.0,111950.0,0.031588]
[1756150286315,7.55427273,111960.0,111950.0,0.026568]
[1756150286534,7.55224273,111960.0,111950.0,0.031588]
[1756150286784,5.60533499,111960.0,111950.0,0.031588]
[1756150287038,0.08669977,111960.0,111950.0,0.031588]
[1756150287252,0.96032949,111960.0,111950.0,0.031588]
[1756150287465,0.96032949,111960.0,111950.0,0.10492276]
[1756150287683,2.06896339,111960.0,111950.0,0.10592276]
[1756150287901,2.15583304,111960.0,111950.0,0.032588]
[1756150288126,2.212202,111960.0,111950.0,0.029628]
[1756150288344,0.35220464,111960.0,111950.0,0.029628]
[1756150288569,0.96032949,111960.0,111950.0,0.032588]
[1756150288790,0.01634817,111960.0,111950.0,0.28457394]
[1756150289010,0.94634685,111960.0,111950.0,0.032588]
[1756150289237,1.87634553,111960.0,111950.0,0.032588]
[1756150289471,2.20024936,111960.0,111950.0,0.029628]
[1756150289718,7.71804936,111960.0,111950.0,0.027568]
[1756150289949,5.49958678,111960.0,111950.0,0.032588]
[1756150290168,0.67746678,111960.0,111950.0,0.030588]
[1756150290390,7.71812936,111960.0,111950.0,0.025568]
[1756150290620,7.71812936,111960.0,111950.0,0.031628]
[1756150290845,7.72130936,111960.0,111950.0,0.026568]
[1756150291288,7.74722491,111960.0,111950.0,0.026568]
[1756150291510,7.79002936,111960.0,111950.0,0.026568]
[1756150291729,7.79002936,111960.0,111950.0,0.025568]
[1756150292149,7.79058936,111960.0,111950.0,0.025568]
[1756150292360,7.61214936,111960.0,111950.0,0.026568]
[1756150292574,5.927412,111960.0,111950.0,0.025568]
[1756150292796,7.79036936,111960.0,111950.0,0.027628]
[1756150293020,6.86333068,111960.0,111950.0,0.027628]
[1756150293233,6.86333068,111960.0,111950.0,0.025568]
[1756150293234,7.79650936,111960.0,111950.0,0.025568]
[1756150293441,7.79051724,111960.0,111950.0,0.025568]
[1756150293653,7.79451724,111960.0,111950.0,0.025568]
[1756150293866,7.79133724,111960.0,111950.0,0.025568]
[1756150294078,6.85933856,111960.0,111950.0,0.027628]
[1756150294502,7.79251724,111960.0,111950.0,0.025568]
[1756150294931,7.79051724,111960.0,111950.0,0.025568]
[1756150295161,7.79151724,111960.0,111950.0,0.025568]
[1756150295588,7.80450119,111960.0,111950.0,0.025568]
[1756150295852,7.84786576,111960.0,111950.0,0.025568]
[1756150296084,7.84786576,111960.0,111930.0,0.001]
[1756150296085,0.17866714,111940.0,111930.0,0.001]
[1756150296306,6.78484498,111940.0,111930.0,0.001]
[1756150296520,7.81802366,111940.0,111930.0,1e-08]
[1756150296743,0.63614809,111920.0,111910.0,0.00015668]
[1756150296957,7.80474064,111920.0,111910.0,0.00015668]
[1756150297167,7.80470064,111920.0,111910.0,0.00015668]
[1756150297384,6.96485506,111920.0,111910.0,0.00015668]
[1756150297596,0.17876721,111880.0,111840.0,0.07110163]
[1756150297812,0.92999868,111850.0,111840.0,0.07110163]
[1756150298020,0.92999868,111850.0,111840.0,0.07316163]
[1756150298228,1.1087946,111860.0,111840.0,0.07316163]
[1756150298434,0.1788109,111850.0,111840.0,0.07316163]
[1756150298651,1.13569958,111850.0,111840.0,0.07316163]
[1756150298867,1.32433481,111850.0,111840.0,0.00206]
[1756150299083,0.17883808,111840.0,111820.0,0.07110163]
[1756150299302,0.17883808,111840.0,111810.0,0.17887424]
[1756150299529,0.19281415,111840.0,111830.0,0.00206]
[1756150299785,0.37233415,111840.0,111830.0,0.00206]
[1756150300010,0.419508,111840.0,111830.0,0.00206]
[1756150300233,0.419988,111840.0,111830.0,0.00502]
[1756150300447,0.419988,111840.0,111830.0,0.00206]
[1756150300679,1.35002668,111840.0,111830.0,0.00206]
[1756150300888,1.43689633,111840.0,111830.0,0.00206]
[1756150301151,2.70689501,111840.0,111830.0,0.00206]
[1756150301389,0.17886955,111820.0,111810.0,0.00296]
[1756150301621,0.92999868,111820.0,111810.0,0.00296]
[1756150301836,1.10885756,111820.0,111810.0,0.00502]
[1756150302027,0.18778502,111830.0,111820.0,0.004]
[1756150302308,0.1788949,111800.0,111760.0,0.00922889]
[1756150302557,0.1788949,111800.0,111790.0,0.00206]
[1756150302558,0.28052,111800.0,111790.0,0.00206]
[1756150302787,0.1,111800.0,111790.0,0.00206]
[1756150303008,0.11641188,111800.0,111790.0,0.1861632]
[1756150303251,0.1,111800.0,111790.0,0.18392687]
[1756150303473,1.02999868,111800.0,111790.0,0.00502]
[1756150303709,1.03004641,111800.0,111790.0,0.00502]
[1756150303936,0.10104773,111800.0,111790.0,0.01102]
[1756150304164,1.03104641,111800.0,111790.0,0.01102]
[1756150304393,0.10104773,111800.0,111790.0,0.01102]
[1756150304621,0.10104773,111800.0,111790.0,0.19439953]
[1756150304867,0.00104773,111800.0,111790.0,0.27681162]
[1756150305083,0.01504815,111800.0,111790.0,0.27681162]
[1756150305797,0.00104773,111800.0,111790.0,1.22425932]
[1756150306045,0.00104773,111800.0,111790.0,1.56425932]
[1756150306256,0.00304773,111800.0,111790.0,1.57625932]
[1756150306442,0.00304773,111800.0,111790.0,0.64626064]
[1756150306701,0.00304773,111800.0,111790.0,0.64026064]
[1756150306918,0.00204773,111800.0,111790.0,0.64026064]
[1756150307136,0.00304773,111800.0,111790.0,1.57525932]
[1756150307593,0.00104773,111800.0,111790.0,1.63201932]
[1756150307811,0.00104773,111800.0,111790.0,1.67134645]
[1756150308045,0.00104773,111800.0,111790.0,1.82134645]
[1756150308265,0.18509884,111850.0,111820.0,0.1877883]
[1756150308519,0.43447616,111850.0,111820.0,0.00296]
[1756150308734,0.1,111820.0,111800.0,0.00296]
[1756150308957,0.29533766,111820.0,111800.0,0.00296]
[1756150309179,0.001,111800.0,111790.0,0.01296]
[1756150309399,0.11747703,111800.0,111790.0,0.00502]
[1756150309644,0.11747703,111800.0,111790.0,0.00206]
[1756150309857,0.11747703,111800.0,111790.0,0.18392687]
[1756150310079,0.11647703,111800.0,111790.0,0.18392687]
[1756150310735,0.11647703,111800.0,111790.0,0.18440741]
[1756150310962,0.01747703,111800.0,111790.0,0.19040741]
[1756150311397,0.01747703,111800.0,111790.0,0.19140741]
[1756150311614,0.01747703,111800.0,111790.0,0.27829216]
[1756150312058,0.01647703,111800.0,111790.0,0.18144741]
[1756150312274,0.01647703,111800.0,111790.0,0.18440741]
[1756150312490,0.01747703,111800.0,111790.0,1.20929084]
[1756150312726,0.01747703,111800.0,111790.0,0.27929216]
[1756150313376,0.01647703,111800.0,111790.0,0.45553216]
[1756150313593,0.01647703,111800.0,111790.0,0.46553216]
[1756150313812,0.01747703,111800.0,111790.0,0.10238529]
[1756150314050,0.01747703,111800.0,111790.0,0.27833216]
[1756150314736,0.01747703,111800.0,111790.0,0.28033216]
[1756150315162,0.01647703,111800.0,111790.0,0.26833216]
[1756150315365,0.01647703,111800.0,111790.0,0.18344741]
[1756150315789,0.01647703,111800.0,111790.0,0.18444741]
[1756150316011,0.28396,111810.0,111790.0,0.18444741]
[1756150316264,0.47912939,111810.0,111790.0,0.00554054]
[1756150316492,0.00212,111800.0,111790.0,0.00348054]
[1756150316742,0.10212,111800.0,111790.0,0.00348054]
[1756150316947,0.10212,111800.0,111790.0,0.00564054]
[1756150317413,0.10212,111800.0,111790.0,0.00348054]
[1756150317626,0.10212,111800.0,111790.0,0.18238741]
[1756150317863,0.10212,111800.0,111790.0,0.18138741]
[1756150318060,0.10212,111800.0,111790.0,0.00248054]
[1756150318265,0.10212,111800.0,111790.0,0.00048054]
[1756150318483,0.10212,111800.0,111790.0,0.00564054]
[1756150318692,0.10212,111800.0,111790.0,0.00048054]
[1756150318895,0.11629684,111800.0,111790.0,0.18154741]
[1756150319117,0.11629684,111800.0,111790.0,0.00264054]
[1756150319325,0.11843267,111800.0,111790.0,0.00264054]
[1756150319755,0.11843267,111800.0,111790.0,0.00564054]
[1756150319756,0.11631267,111800.0,111790.0,0.00564054]
[1756150319959,0.29520354,111800.0,111790.0,0.00564054]
[1756150320198,0.29732354,111800.0,111790.0,0.00564054]
[1756150320417,0.29732354,111800.0,111790.0,0.00348054]
[1756150320634,0.29732354,111800.0,111790.0,0.00564054]
[1756150320868,0.48318354,111800.0,111790.0,0.00348054]
[1756150321845,1.475943,111800.0,111790.0,0.00348054]
[1756150322079,1.47596509,111800.0,111790.0,0.00348054]
[1756150322298,1.81596509,111800.0,111790.0,0.00348054]
[1756150322528,0.88596641,111800.0,111790.0,0.00348054]
[1756150322768,6.81596509,111800.0,111790.0,0.00048054]
[1756150323016,6.81596509,111800.0,111730.0,0.22843151]
[1756150323017,0.18791469,111760.0,111720.0,0.00024594]
[1756150323248,0.18112295,111730.0,111720.0,0.00024594]
[1756150323480,1.04845344,111730.0,111720.0,0.00024594]
[1756150323707,0.48999244,111730.0,111720.0,0.00024594]
[1756150323934,1.24404817,111730.0,111720.0,0.00024594]
[1756150324161,0.31098949,111730.0,111720.0,0.00024594]
[1756150324390,0.30193476,111730.0,111720.0,0.00024594]
[1756150324617,0.30241507,111730.0,111720.0,0.00024594]
[1756150324923,0.30547507,111730.0,111720.0,0.00024594]
[1756150325130,0.10048031,111730.0,111720.0,0.00240594]
[1756150325348,0.11884907,111730.0,111720.0,0.00240594]
[1756150325664,0.11884907,111730.0,111720.0,0.00024594]
[1756150325665,0.73657541,111730.0,111720.0,0.00024594]
[1756150325786,6.66460896,111730.0,111720.0,0.00024594]
[1756150326256,6.84904896,111730.0,111720.0,0.00024594]
[1756150326478,6.83503845,111730.0,111720.0,0.00024594]
[1756150326901,6.83403845,111730.0,111720.0,0.00024594]
[1756150327139,5.90403977,111730.0,111720.0,0.00024594]
[1756150327355,7.80471996,111730.0,111720.0,0.00024594]
[1756150327632,7.8333141,111730.0,111720.0,0.00024594]
[1756150327846,8.1147775,111730.0,111720.0,1e-08]
[1756150328480,0.61906706,111690.0,111680.0,1e-08]
[1756150328689,6.79042479,111690.0,111680.0,1e-08]
[1756150328924,6.97680479,111690.0,111680.0,1e-08]
[1756150329360,5.94653972,111690.0,111680.0,1e-08]
[1756150329573,6.807505,111690.0,111680.0,1e-08]
[1756150329802,5.79524961,111690.0,111680.0,1e-08]
[1756150330033,1.7257283,111690.0,111680.0,1e-08]
[1756150330276,5.97479668,111690.0,111680.0,1e-08]
[1756150330489,6.5420483,111690.0,111680.0,1e-08]
[1756150330704,6.72511536,111690.0,111680.0,1e-08]
[1756150330930,1.2008683,111690.0,111680.0,0.1812431]
[1756150331158,1.37092809,111690.0,111680.0,0.00216001]
[1756150331383,0.18568364,111690.0,111680.0,0.1841931]
[1756150331664,0.11688364,111690.0,111680.0,0.1841931]
[1756150331896,0.11688364,111690.0,111680.0,0.1812431]
[1756150331897,0.30224364,111690.0,111680.0,0.1812431]
[1756150332100,0.30224364,111690.0,111680.0,0.1841931]
[1756150332321,1.23636232,111690.0,111680.0,1e-08]
[1756150332536,1.48565515,111690.0,111680.0,1e-08]
[1756150332759,1.48565515,111690.0,111680.0,0.00400001]
[1756150332978,6.48565515,111690.0,111680.0,0.00400001]
[1756150333231,6.82565515,111690.0,111680.0,1e-08]
[1756150333446,6.54909774,111690.0,111680.0,1e-08]
[1756150333668,5.79767906,111690.0,111680.0,1e-08]
[1756150333886,0.30144364,111690.0,111680.0,0.1841931]
[1756150334101,0.30356364,111690.0,111680.0,0.00200001]
[1756150334325,0.30356364,111690.0,111680.0,0.1832431]
[1756150334326,0.11688364,111690.0,111680.0,0.1832431]
[1756150334541,0.10048001,111690.0,111680.0,0.1861931]
[1756150334784,0.30142943,111690.0,111680.0,0.1841931]
[1756150335024,0.30142943,111690.0,111680.0,1.11819178]
[1756150335025,0.01674943,111690.0,111680.0,1.11819178]
[1756150335253,0.00048001,111690.0,111680.0,1.11919178]
[1756150335517,0.00048001,111690.0,111680.0,0.1851931]
[1756150335741,0.00048001,111690.0,111680.0,0.1891931]
[1756150335974,0.00048001,111690.0,111680.0,0.1851931]
[1756150336208,0.00048001,111690.0,111680.0,0.27207785]
[1756150336445,0.00048001,111690.0,111680.0,0.27707785]
[1756150336906,0.00048001,111690.0,111680.0,1.48908896]
[1756150337150,0.00048001,111690.0,111680.0,1.48808896]
[1756150337386,0.00048001,111690.0,111680.0,1.50553798]
[1756150337626,0.00048001,111690.0,111680.0,1.68813798]
[1756150337857,0.35348,111720.0,111700.0,0.17903709]
[1756150337858,0.06884,111720.0,111700.0,0.17903709]
[1756150338112,0.01627884,111720.0,111710.0,0.18862086]
[1756150338325,0.03029106,111720.0,111710.0,0.184145]
[1756150338561,0.03029106,111720.0,111710.0,0.183145]
[1756150339302,1.42917182,111720.0,111700.0,0.00504773]
[1756150339527,1.56779274,111710.0,111700.0,4.773e-05]
[1756150339810,1.83445045,111710.0,111700.0,4.773e-05]
[1756150340032,7.17445045,111710.0,111700.0,4.773e-05]
[1756150340247,7.17445045,111710.0,111700.0,0.00304773]
[1756150340248,6.91866882,111710.0,111700.0,0.00304773]
[1756150340465,5.08456271,111710.0,111700.0,0.00304773]
[1756150340726,1.39445382,111710.0,111700.0,4.773e-05]
[1756150340951,1.58041382,111710.0,111700.0,4.773e-05]
[1756150341168,0.55261771,111710.0,111700.0,4.773e-05]
[1756150341394,1.76462882,111710.0,111700.0,4.773e-05]
[1756150341619,6.91728336,111710.0,111700.0,0.00504773]
[1756150341849,7.25728336,111710.0,111700.0,0.00304773]
[1756150342111,6.04527225,111710.0,111700.0,0.00304773]
[1756150342346,6.04527225,111710.0,111700.0,0.00904773]
[1756150342579,7.18618173,111710.0,111700.0,0.00304773]
[1756150342808,5.97417062,111710.0,111700.0,0.00504773]
[1756150343032,7.18618173,111710.0,111700.0,0.00504773]
[1756150343283,7.18618173,111710.0,111700.0,0.00204773]
[1756150343970,7.16990289,111710.0,111700.0,0.00204773]
[1756150344212,0.11630904,111710.0,111700.0,0.18325875]
[1756150344441,0.11630904,111710.0,111700.0,0.18620875]
[1756150344695,0.16888,111720.0,111710.0,0.179035]
[1756150344960,0.18520525,111720.0,111710.0,0.00511]
[1756150345200,0.37080525,111720.0,111710.0,0.00216]
[1756150345439,0.37080525,111720.0,111700.0,0.00204773]
[1756150345693,0.18520525,111720.0,111710.0,0.184155]
[1756150345933,0.38473778,111720.0,111710.0,0.184155]
[1756150346167,0.38473778,111720.0,111710.0,0.00412]
[1756150346634,0.38473778,111720.0,111710.0,0.00095]
[1756150347325,0.1,111710.0,111700.0,4.773e-05]
[1756150347580,0.30160525,111710.0,111700.0,0.18421875]
[1756150347816,0.20160525,111710.0,111700.0,0.19021875]
[1756150348050,0.20160525,111710.0,111700.0,0.00516773]
[1756150348280,0.20160525,111710.0,111700.0,0.00199773]
[1756150348750,1.76102558,111710.0,111700.0,4.773e-05]
[1756150348990,1.76512558,111710.0,111700.0,0.00704773]
[1756150349225,1.76412558,111710.0,111700.0,4.773e-05]
[1756150349454,2.13105358,111710.0,111700.0,4.773e-05]
[1756150349700,7.13925678,111710.0,111700.0,4.773e-05]
[1756150350168,7.13901678,111710.0,111700.0,4.773e-05]
[1756150350410,5.74196567,111710.0,111700.0,0.00204773]
[1756150350649,0.40781067,111710.0,111700.0,0.00704773]
[1756150350884,1.79885678,111710.0,111700.0,4.773e-05]
[1756150351355,5.58688567,111710.0,111700.0,0.00104773]
[1756150351594,0.40282067,111710.0,111700.0,0.00199773]
[1756150351836,0.40282067,111710.0,111700.0,0.00204773]
[1756150352072,0.57876247,111710.0,111700.0,4.773e-05]
[1756150352332,1.79899967,111710.0,111700.0,4.773e-05]
[1756150352557,0.40485356,111710.0,111700.0,0.00104773]
[1756150352812,0.31015134,111710.0,111700.0,0.00299773]
[1756150353047,0.49119634,111710.0,111700.0,0.00204773]
[1756150353284,0.48607025,111710.0,111700.0,0.00204773]
[1756150353514,0.31028275,111710.0,111700.0,0.00104773]
[1756150353752,0.31040275,111710.0,111700.0,0.18721875]
[1756150353971,0.31040345,111710.0,111700.0,0.18721875]
[1756150354449,0.31040345,111710.0,111700.0,0.18621875]
[1756150354618,0.12468345,111710.0,111700.0,0.19121875]
[1756150354935,0.30197518,111710.0,111700.0,0.18621875]
[1756150355146,0.30197518,111710.0,111700.0,0.18304875]
[1756150355363,0.30197518,111710.0,111700.0,0.19104875]
[1756150355572,0.30197518,111710.0,111700.0,0.19421875]
[1756150355777,1.79322978,111710.0,111700.0,0.01004773]
[1756150355919,1.859594,111710.0,111700.0,0.01004773]
[1756150356126,1.859594,111710.0,111700.0,0.00804773]
[1756150356331,1.859594,111710.0,111700.0,0.01204773]
[1756150356792,2.199594,111710.0,111700.0,0.00404773]
[1756150356975,1.99341772,111710.0,111700.0,4.773e-05]
[1756150357223,1.99341772,111710.0,111700.0,0.00704773]
[1756150357451,6.99341772,111710.0,111700.0,0.00204773]
[1756150357662,6.99341772,111710.0,111700.0,4.773e-05]
[1756150357876,6.99341772,111710.0,111700.0,0.00404773]
[1756150358087,6.99341772,111710.0,111700.0,0.00104773]
[1756150358494,6.99341772,111710.0,111700.0,0.00304773]
[1756150358619,6.99341772,111710.0,111700.0,0.00104773]
[1756150358826,7.08313882,111710.0,111700.0,0.00104773]
[1756150359241,7.08313882,111710.0,111700.0,4.773e-05]
[1756150360068,6.99626917,111710.0,111700.0,0.00104773]
[1756150360275,6.96195205,111710.0,111700.0,0.00104773]
[1756150361467,5.56241094,111710.0,111700.0,0.00104773]
[1756150361686,6.95962205,111710.0,111700.0,0.00104773]
[1756150361911,6.96163205,111710.0,111700.0,0.00104773]
[1756150362867,6.95938205,111710.0,111700.0,0.00104773]
[1756150363096,0.22829594,111710.0,111700.0,0.00616773]
[1756150363324,0.22829594,111710.0,111700.0,0.00104773]
[1756150363325,0.22241094,111710.0,111700.0,0.00104773]
[1756150363549,1.62127205,111710.0,111700.0,0.00104773]
[1756150364008,0.04337594,111710.0,111700.0,0.00104773]
[1756150364267,1.62119205,111710.0,111700.0,0.00104773]
[1756150364494,1.63513358,111710.0,111700.0,0.00304773]
[1756150364730,1.62119205,111710.0,111700.0,0.00704773]
[1756150365012,1.44014705,111710.0,111700.0,0.00899773]
[1756150365261,1.25538705,111710.0,111700.0,0.00816773]
[1756150365484,0.06888,111720.0,111700.0,0.18721875]
[1756150365716,0.18468,111710.0,111700.0,0.00516773]
[1756150366179,0.18468,111710.0,111700.0,0.00716773]
[1756150366663,0.18488,111710.0,111700.0,0.18421792]
[1756150366893,0.18689,111710.0,111700.0,4.773e-05]
[1756150367129,0.18689,111710.0,111700.0,0.00204773]
[1756150367130,1.63773661,111710.0,111700.0,0.00204773]
[1756150367366,1.63532601,111710.0,111700.0,0.00504773]
[1756150367616,1.35806128,111710.0,111700.0,0.00504773]
[1756150367811,1.35806128,111710.0,111700.0,0.00204773]
[1756150368066,1.35806128,111710.0,111700.0,4.773e-05]
[1756150368301,0.2440799,111710.0,111700.0,0.00199773]
[1756150368531,1.17681628,111710.0,111700.0,4.773e-05]
[1756150368761,1.35783128,111710.0,111700.0,4.773e-05]
[1756150368991,1.37431129,111710.0,111700.0,4.773e-05]
[1756150369194,1.37431129,111710.0,111700.0,0.00504773]
[1756150369433,1.37431706,111710.0,111700.0,0.00504773]
[1756150369658,1.37431706,111710.0,111700.0,0.00804773]
[1756150369879,1.37233706,111710.0,111700.0,0.00804773]
[1756150370145,1.37233706,111710.0,111700.0,0.00504773]
[1756150370378,1.19330206,111710.0,111700.0,0.00716773]
[1756150370609,0.21465975,111710.0,111700.0,0.18621875]
[1756150370834,0.21465975,111710.0,111700.0,0.01116773]
[1756150371186,1.14940613,111710.0,111700.0,0.01116773]
[1756150371400,1.14940613,111710.0,111700.0,0.19021875]
[1756150371621,0.21465975,111710.0,111700.0,0.01116773]
[1756150372283,0.03874387,111710.0,111700.0,0.19021875]
[1756150372508,0.72242681,111710.0,111700.0,0.19021875]
[1756150372792,5.22242681,111710.0,111700.0,0.19021875]
[1756150373043,1.33620819,111710.0,111700.0,0.01116773]
[1756150373471,0.40146181,111710.0,111700.0,0.01116773]
[1756150373669,0.03874681,111710.0,111700.0,0.19245688]
[1756150373892,0.22246681,111710.0,111700.0,0.19021875]
[1756150374788,0.2002086,111710.0,111700.0,0.19021875]
[1756150375001,0.2002086,111710.0,111700.0,0.00799773]
[1756150375221,1.13495498,111710.0,111700.0,0.01116773]
[1756150375649,0.2002086,111710.0,111700.0,0.19021875]
[1756150377695,0.1996886,111710.0,111700.0,0.19021875]
[1756150377932,0.21370224,111710.0,111700.0,0.19021875]
[1756150378578,0.03050224,111710.0,111700.0,0.19021875]
[1756150378782,0.19697364,111710.0,111700.0,0.19021875]
[1756150379190,0.21347883,111710.0,111700.0,0.19021875]
[1756150379396,1.13172002,111710.0,111700.0,0.01116773]
[1756150380035,1.13172002,111710.0,111700.0,0.00604773]
[1756150380036,1.35611095,111710.0,111700.0,0.00604773]
[1756150380304,0.07587376,111710.0,111700.0,0.00604773]
[1756150380515,1.37217514,111710.0,111700.0,0.00604773]
[1756150381364,1.35860095,111710.0,111700.0,0.00604773]
[1756150381573,1.37510863,111710.0,111700.0,0.00604773]
[1756150381785,1.46197828,111710.0,111700.0,0.00604773]
[1756150381990,6.87308091,111710.0,111700.0,0.00604773]
[1756150382212,6.78796406,111710.0,111700.0,0.00604773]
[1756150382623,6.78796406,111710.0,111700.0,0.00404773]
[1756150383047,6.78796406,111710.0,111700.0,4.773e-05]
[1756150383252,6.78796406,111710.0,111700.0,0.00104773]
[1756150383456,6.60544406,111710.0,111700.0,0.00304773]
[1756150383664,6.60544406,111710.0,111700.0,0.00204773]
[1756150383665,6.77125696,111710.0,111700.0,0.00204773]
[1756150384084,6.78776659,111710.0,111700.0,0.00204773]
[1756150384255,6.77125696,111710.0,111700.0,0.00204773]
[1756150384476,6.78776701,111710.0,111700.0,0.00204773]
[1756150384680,5.85302063,111710.0,111700.0,0.00204773]
[1756150384887,6.77126696,111710.0,111700.0,0.00204773]
[1756150385094,6.68145731,111710.0,111700.0,0.00204773]
[1756150385520,6.51315273,111710.0,111700.0,0.00204773]
[1756150385788,6.69909273,111710.0,111700.0,0.00304773]
[1756150385946,6.71560453,111710.0,111700.0,0.00304773]
[1756150386345,5.59785815,111710.0,111700.0,0.00304773]
[1756150386552,6.69615273,111710.0,111700.0,0.00304773]
[1756150387506,6.71266499,111710.0,111700.0,0.00304773]
[1756150388233,6.69615273,111710.0,111700.0,0.00304773]
[1756150388467,0.57840635,111710.0,111700.0,0.00516773]
[1756150388685,1.69385273,111710.0,111700.0,0.00834773]
[1756150388908,1.51117273,111710.0,111700.0,0.00834773]
[1756150389133,0.24007135,111710.0,111700.0,0.00834773]
[1756150389371,0.19653542,111710.0,111700.0,0.18739875]
[1756150389592,0.19653542,111710.0,111700.0,0.00834773]
[1756150389847,0.01401542,111710.0,111700.0,0.18739875]
[1756150390073,0.19653542,111710.0,111700.0,0.00834773]
[1756150390299,0.19653542,111710.0,111700.0,0.18739875]
[1756150390753,0.01401542,111710.0,111700.0,0.18739875]
[1756150390980,0.19637542,111710.0,111700.0,0.18739875]
[1756150391210,0.19637542,111710.0,111700.0,0.00834773]
[1756150391654,0.19637542,111710.0,111700.0,0.18739875]
[1756150391655,1.1309618,111710.0,111700.0,0.18739875]
[1756150392103,0.01401542,111710.0,111700.0,0.18639875]
[1756150392542,0.19629542,111710.0,111700.0,0.19039875]
[1756150392761,0.19629542,111710.0,111700.0,0.18839875]
[1756150393278,0.19629542,111710.0,111700.0,0.19339875]
[1756150393498,0.01401542,111710.0,111700.0,0.19339875]
[1756150393733,0.01401542,111710.0,111700.0,0.2802835]
[1756150394179,0.251,111720.0,111710.0,0.179035]
[1756150394411,0.251,111720.0,111710.0,0.184335]
[1756150395832,0.06888,111720.0,111710.0,0.27421975]
[1756150396065,0.251,111720.0,111710.0,0.187335]
[1756150396520,0.251,111720.0,111710.0,0.191335]
[1756150396945,0.06888,111720.0,111710.0,0.191335]